bitfinex-derivatives/quotes_ETHF0:USTF0_20251103
["timestamp","ask_amount","ask_price","bid_price","bid_amount"]
[1762155872407,0.98908265,3716.6,3716.5,0.3833]
[1762155873004,0.71016052,3716.6,3716.5,0.3833]
[1762155873204,0.27936481,3716.6,3716.5,0.3833]
[1762155873505,0.71016052,3716.6,3716.5,0.3833]
[1762155873899,0.71016052,3716.7,3716.5,0.3833]
[1762155874206,0.71016052,3716.6,3716.5,0.2724]
[1762155874595,0.2794026,3716.6,3716.5,0.2724]
[1762155874795,0.71016052,3716.6,3716.5,0.2724]
[1762155875000,0.71016052,3716.7,3716.5,0.2724]
[1762155875200,0.71016052,3716.6,3716.5,0.2724]
[1762155875510,0.71016052,3716.7,3716.5,0.2724]
[1762155875807,0.71016052,3716.7,3716.5,0.4306]
[1762155877208,0.71016052,3716.7,3716.6,0.2724]
[1762155877608,0.00192937,3716.8,3716.7,0.2724]
[1762155877906,0.71392752,3716.8,3716.7,0.2724]
[1762155878099,0.99322106,3716.8,3716.7,0.2724]
[1762155878302,0.71392752,3716.8,3716.7,0.2724]
[1762155879007,0.00192937,3716.8,3716.7,0.2724]
[1762155882706,3.2078,3717.6,3717.5,0.2724]
[1762155883012,4.18781418,3717.6,3717.5,0.4024]
[1762155883208,3.91986699,3717.6,3717.5,0.4024]
[1762155883604,4.18336699,3717.6,3717.5,0.2724]
[1762155883807,4.18336699,3717.6,3716.0,3.3187]
[1762155883808,0.2635,3716.6,3716.0,3.3187]
[1762155884005,3.2078,3716.5,3716.1,6.47346]
[1762155884210,3.3573,3716.5,3716.1,5.989]
[1762155884709,0.1495,3716.5,3716.1,5.989]
[1762155884910,0.1495,3716.5,3716.1,6.47346]
[1762155885208,0.1495,3716.5,3716.2,0.48444]
[1762155885411,0.1495,3716.5,3716.1,5.989]
[1762155885809,0.1495,3716.5,3716.0,3.3187]
[1762155886807,0.1495,3716.5,3716.0,3.80317]
[1762155887715,0.1495,3716.5,3716.0,3.2078]
[1762155888016,0.2635,3716.1,3716.0,4.49]
[1762155888605,0.97543324,3716.1,3716.0,4.49]
[1762155889314,0.97543324,3716.1,3716.0,4.7389]
[1762155890817,0.71193324,3716.1,3716.0,4.8956]
[1762155891020,3.3573,3716.5,3716.0,4.8956]
[1762155891218,0.71183199,3716.4,3716.0,4.8956]
[1762155891421,3.3573,3716.5,3716.0,4.8956]
[1762155891619,0.71192607,3716.4,3716.3,0.2489]
[1762155892019,3.2078,3716.5,3716.4,0.2489]
[1762155893026,3.6208,3716.5,3716.0,0.1567]
[1762155893221,0.71182472,3716.4,3715.5,0.1567]
[1762155893519,0.97966059,3716.3,3715.5,9.7787]
[1762155893723,0.9796515,3716.2,3715.6,9.629]
[1762155894024,0.71182472,3716.1,3715.6,9.629]
[1762155894227,3.3573,3716.5,3715.6,9.629]
[1762155894424,0.97951647,3716.4,3715.6,9.629]
[1762155894725,0.97951647,3716.3,3715.6,9.629]
[1762155894923,0.97951647,3716.2,3715.6,9.629]
[1762155895222,0.71169074,3716.1,3715.6,9.629]
[1762155895421,3.3573,3716.5,3715.6,9.629]
[1762155895623,0.97957689,3716.4,3715.5,0.64123]
[1762155895821,0.97957689,3716.3,3716.2,0.2489]
[1762155896020,0.71173416,3716.3,3714.1,14.27319372]
[1762155896225,3.2078,3714.2,3713.5,0.1567]
[1762155896413,3.2078,3713.6,3713.5,0.1567]
[1762155896620,1.44378681,3715.4,3714.6,0.1567]
[1762155896821,2.94501719,3714.6,3714.0,0.1567]
[1762155897026,3.2078,3714.1,3714.0,0.52205892]
[1762155897326,4.18585413,3714.1,3714.0,10.01905892]
[1762155897526,4.18585413,3714.1,3714.0,10.02005892]
[1762155898217,4.40329484,3714.1,3714.0,8.92e-06]
[1762155898420,4.40329484,3714.1,3714.0,10.01670892]
[1762155898615,4.67014982,3714.1,3714.0,10.01270892]
[1762155898823,4.67014982,3714.1,3714.0,0.15670892]
[1762155899023,4.67014982,3714.1,3714.0,10.01170892]
[1762155899220,4.40329484,3714.1,3714.0,10.01170892]
[1762155899626,4.40329484,3714.1,3714.0,0.15670892]
[1762155899822,11.40098654,3714.1,3714.0,0.15670892]
[1762155900123,3.2078,3713.7,3713.5,0.1567]
[1762155900321,2.79469277,3713.6,3713.5,0.1567]
[1762155900523,0.71077484,3713.6,3713.5,0.1567]
[1762155900723,3.2078,3713.7,3713.5,0.1567]
[1762155900926,3.2078,3713.7,3713.5,0.1601786]
[1762155901432,5.02522623,3713.7,3713.5,0.8981786]
[1762155902126,3.2078,3713.7,3713.6,0.2489]
[1762155902722,3.2078,3713.7,3713.6,10.0979]
[1762155905626,3.2078,3713.7,3713.6,0.2489]
[1762155905831,3.2078,3714.9,3714.0,0.1567]
[1762155906033,3.2078,3714.9,3714.5,0.2489]
[1762155906233,3.2078,3714.9,3714.5,10.0869]
[1762155906528,3.2078,3715.5,3715.2,0.1567]
[1762155906726,3.2078,3715.5,3715.3,9.838]
[1762155906932,3.2078,3715.9,3715.8,0.4056]
[1762155907232,3.2078,3716.3,3715.8,0.4056]
[1762155907432,3.21051813,3716.3,3715.8,0.4056]
[1762155908136,3.21051813,3716.3,3715.9,9.837]
[1762155908534,3.2078,3715.2,3713.4,0.1567]
[1762155908740,3.2078,3714.7,3713.5,9.8394786]
[1762155908929,3.2078,3714.7,3714.6,7.3627]
[1762155912135,9.9382,3714.7,3713.5,0.0034786]
[1762155912338,5.02522623,3714.1,3713.5,0.0034786]
[1762155912539,5.02522623,3713.6,3712.8,0.1567]
[1762155912733,3.2078,3712.9,3712.8,0.1567]
[1762155912938,3.2078,3712.9,3712.8,1.108]
[1762155913139,3.2078,3712.9,3712.8,0.583]
[1762155913341,3.2078,3712.9,3712.8,10.534]
[1762155913536,3.20986567,3712.9,3712.8,10.53656466]
[1762155913743,3.20986567,3712.9,3712.8,11.53726466]
[1762155914242,2.13734648,3712.9,3712.8,11.53726466]
[1762155914541,4.7925917,3716.8,3712.8,11.53726466]
[1762155914542,3.2078,3713.7,3713.6,1.0007]
[1762155914747,3.2078,3713.7,3713.6,10.9477]
[1762155915047,3.2078,3713.7,3713.6,9.948]
[1762155915246,3.21122698,3713.7,3713.5,0.583]
[1762155915443,3.21122698,3713.7,3713.6,5.067]
[1762155916249,3.21122698,3713.7,3713.6,6.0677]
[1762155916644,3.21122698,3713.7,3713.6,1.0007]
[1762155916843,3.21122698,3713.7,3713.6,10.9407]
[1762155920752,0.00342698,3713.7,3713.6,10.9407]
[1762155921148,0.00342698,3713.7,3713.6,10.9147]
[1762155922149,2.53334081,3713.7,3712.8,0.00256466]
[1762155922348,5.02522623,3712.9,3712.8,0.58556466]
[1762155922653,5.73771383,3712.9,3712.8,0.58556466]
[1762155923146,5.73771383,3712.9,3712.8,4.39456466]
[1762155923354,6.00448069,3712.9,3712.8,0.58556466]
[1762155923656,6.00448069,3712.9,3712.8,4.14856466]
[1762155923845,4.18705446,3712.9,3712.8,0.58556466]
[1762155924155,0.7124876,3712.9,3712.8,11.54926466]
[1762155924343,4.18714562,3712.9,3712.8,11.54926466]
[1762155924549,4.18714562,3712.9,3712.8,0.58556466]
[1762155925856,4.18714562,3712.9,3712.8,4.33556466]
[1762155926057,4.18714562,3712.9,3712.8,0.58556466]
[1762155926252,4.18714562,3712.9,3712.8,10.54156466]
[1762155927052,4.18714562,3712.9,3712.8,9.95556466]
[1762155927252,4.18714562,3712.9,3712.8,0.00256466]
[1762155927555,4.18714562,3712.9,3711.6,0.583]
[1762155927756,3.2078,3712.3,3711.6,0.583]
[1762155928052,4.18714562,3712.3,3712.2,5.416]
[1762155928253,4.18714562,3712.3,3712.2,0.583]
[1762155928562,4.18714562,3712.3,3712.2,5.54812041]
[1762155928849,4.18714562,3712.3,3712.2,0.58512041]
[1762155929657,4.18714562,3712.3,3712.2,5.54712041]
[1762155929853,4.18714562,3712.3,3712.2,0.58512041]
[1762155930053,4.18714562,3712.3,3712.2,10.52312041]
[1762155930555,4.18714562,3712.3,3712.2,10.51912041]
[1762155931148,4.18714562,3712.3,3712.2,0.58512041]
[1762155931458,4.18714562,3712.3,3712.2,10.51412041]
[1762155931850,4.18714562,3712.3,3712.2,11.46342041]
[1762155932547,0.10896184,3712.7,3712.2,11.46342041]
[1762155932750,3.2078,3713.1,3713.0,0.9493]
[1762155933051,3.2078,3713.1,3713.0,10.8813]
[1762155933256,3.2078,3713.6,3713.5,0.9493]
[1762155933552,3.2078,3714.3,3713.6,0.9493]
[1762155934144,1.44378681,3715.0,3713.6,0.9493]
[1762155934354,3.2078,3714.8,3713.6,0.9493]
[1762155934551,3.2078,3714.8,3713.6,10.8883]
[1762155935552,3.2078,3714.8,3712.8,0.5867]
[1762155935553,3.2078,3712.9,3711.0,0.5867]
[1762155935854,3.2078,3711.6,3711.0,0.5867]
[1762155936055,3.2078,3711.2,3711.0,0.5867]
[1762155936253,3.2078,3711.6,3711.1,0.9493]
[1762155936456,3.2078,3712.0,3711.2,7.06]
[1762155936758,3.2078,3711.6,3711.2,7.06212762]
[1762155936951,3.2078,3711.6,3711.2,0.00212762]
[1762155937148,3.2078,3711.6,3711.3,10.216]
[1762155937855,3.2078,3711.6,3711.2,0.00212762]
[1762155938045,3.2078,3711.6,3711.3,10.21]
[1762155938253,3.2078,3711.6,3711.2,0.00212762]
[1762155939563,3.2078,3711.6,3711.3,10.259]
[1762155940060,3.2078,3711.6,3711.2,0.00212762]
[1762155940557,3.46088906,3711.5,3711.2,0.00212762]
[1762155940860,1.44378681,3711.4,3711.2,0.00212762]
[1762155941359,8.0,3711.3,3710.4,0.5867]
[1762155941555,5.22490225,3710.5,3710.4,0.5867]
[1762155942153,5.22761605,3710.5,3710.4,0.58889105]
[1762155943661,3.18266831,3710.5,3710.4,1.76059105]
[1762155943860,3.2078,3711.0,3710.4,1.76059105]
[1762155944054,3.2078,3711.0,3710.4,0.58889105]
[1762155944256,3.2078,3711.0,3710.5,4.937]
[1762155944654,0.97006666,3710.9,3710.6,10.262]
[1762155944860,0.00194305,3710.9,3710.8,1.1717]
[1762155945262,0.701614,3710.9,3710.8,1.1717]
[1762155945463,0.701614,3710.9,3710.8,6.9167]
[1762155945658,0.00194305,3710.9,3710.8,11.4307]
[1762155945854,0.70156609,3710.9,3710.8,1.1717]
[1762155946260,0.70156609,3710.9,3710.8,6.5337]
[1762155946568,0.00194305,3710.9,3710.8,6.5337]
[1762155947165,3.2078,3711.5,3711.4,1.8844]
[1762155948056,3.2078,3711.5,3710.6,3.2078]
[1762155948057,12.18144317,3711.5,3710.5,5.171]
[1762155948255,3.2078,3710.9,3710.5,5.171]
[1762155948459,0.97018712,3710.8,3710.5,5.171]
[1762155948663,0.69970922,3710.7,3710.5,5.171]
[1762155948864,0.69970922,3710.6,3710.5,5.171]
[1762155949164,0.69970922,3710.6,3710.4,0.58889105]
[1762155949364,3.2078,3710.9,3710.5,10.26]
[1762155949562,0.97007706,3710.8,3710.5,10.26]
[1762155949762,0.97007706,3710.7,3710.6,10.257]
[1762155949957,0.97007706,3710.7,3710.4,0.58889105]
[1762155950153,0.97007706,3710.6,3710.4,0.58889105]
[1762155950465,3.2078,3710.9,3710.5,5.028]
[1762155950665,0.97024237,3710.8,3710.5,5.028]
[1762155950860,0.69973812,3710.7,3710.5,5.028]
[1762155951166,0.69973812,3710.6,3710.5,5.028]
[1762155951559,0.69973812,3710.8,3710.4,0.58889105]
[1762155951760,0.69973812,3710.8,3710.5,10.243]
[1762155952056,0.27063609,3710.7,3710.5,10.243]
[1762155952363,0.69973812,3710.6,3710.5,10.243]
[1762155953061,0.69973812,3710.8,3710.4,0.58889105]
[1762155953263,0.69973812,3710.8,3710.5,4.638]
[1762155954663,0.69973812,3710.8,3710.4,10.81289105]
[1762155954664,0.27069327,3710.7,3710.4,10.81289105]
[1762155954860,3.2078,3710.5,3710.4,10.80289105]
[1762155955056,4.17823139,3710.5,3710.4,10.80289105]
[1762155955261,4.17823139,3710.5,3710.4,0.58889105]
[1762155956156,1.91971954,3712.3,3710.4,3.2559933]
[1762155956361,3.06349585,3713.4,3712.3,1.1717]
[1762155956562,1.7945,3713.4,3713.3,3.2078]
[1762155957156,1.7945,3713.4,3713.3,3.21013353]
[1762155957368,1.7964127,3713.4,3713.3,3.21013353]
[1762155957967,0.0019127,3713.4,3713.3,4.38183353]
[1762155959266,0.0019127,3713.4,3713.3,3.84323353]
[1762155960769,0.0019127,3713.4,3713.3,14.26923353]
[1762155961163,0.0019127,3713.4,3713.3,2.67153353]
[1762155961367,1.1292127,3713.4,3713.3,2.67153353]
[1762155961565,9.1292127,3713.4,3713.3,1e-08]
[1762155961766,15.8620127,3713.4,3712.4,3.2078]
[1762155961969,1.1292127,3713.4,3712.8,3.2078]
[1762155962968,1.1292127,3713.4,3712.8,3.21045682]
[1762155963372,1.1292127,3713.4,3712.8,2.67185682]
[1762155963673,4.6045,3712.9,3712.8,0.00265682]
[1762155963870,0.2694,3712.7,3711.7,3.2078]
[1762155964072,0.6672,3712.1,3711.7,3.2078]
[1762155964277,1.1273,3711.8,3711.7,3.2078]
[1762155964468,1.1273,3711.8,3711.3,6.9258]
[1762155964671,3.2078,3711.5,3710.8,3.2078]
[1762155964876,3.2078,3711.8,3710.9,10.407]
[1762155965180,3.2078,3711.8,3710.8,3.21063187]
[1762155965375,3.2078,3711.8,3710.8,13.61663187]
[1762155968279,1.01940144,3711.7,3710.8,13.61663187]
[1762155968479,1.01940144,3711.6,3710.8,13.61663187]
[1762155968667,0.78070205,3711.5,3710.8,13.61663187]
[1762155968874,0.78070205,3711.4,3710.9,10.376]
[1762155969073,0.78070205,3711.3,3710.9,10.376]
[1762155969375,0.6672,3712.8,3712.1,1.1717]
[1762155969574,3.2078,3712.9,3712.2,10.414]
[1762155969776,0.90605153,3712.8,3712.1,13.6228]
[1762155969975,0.6672,3712.8,3712.1,13.6228]
[1762155970282,0.6672,3712.8,3712.1,3.2078]
[1762155970573,0.50822364,3712.7,3712.1,2.9387]
[1762155970881,0.2694,3712.2,3711.8,3.33]
[1762155971082,0.2694,3712.0,3711.8,10.411]
[1762155971580,0.52958856,3711.9,3711.8,10.411]
[1762155971789,0.52959925,3711.9,3711.6,10.408]
[1762155971980,1.2906,3711.6,3711.5,3.2078]
[1762155972175,1.55080025,3711.6,3711.5,3.2078]
[1762155972377,1.2906,3711.6,3711.1,3.2078]
[1762155972880,0.25008997,3711.5,3711.1,3.2078]
[1762155973078,0.2694,3712.0,3711.1,3.2078]
[1762155973277,0.2694,3711.8,3711.1,3.2078]
[1762155973575,0.2694,3711.6,3711.1,2.9387]
[1762155973775,0.51955973,3711.5,3711.1,2.9387]
[1762155973976,0.25015973,3711.4,3711.1,2.9387]
[1762155974178,0.2694,3711.5,3711.1,2.9387]
[1762155974378,0.25017174,3711.4,3711.1,2.9387]
[1762155974683,0.2694,3712.0,3711.9,1.4056]
[1762155974876,0.51960624,3712.0,3711.9,1.4056]
[1762155975274,0.51961357,3712.0,3711.9,1.4056]
[1762155975480,0.5196228,3712.0,3711.9,1.4056]
[1762155975781,0.2694,3712.0,3711.9,1.4056]
[1762155975985,0.51966845,3712.0,3711.9,1.4056]
[1762155977184,0.51966845,3712.0,3711.9,1.1365]
[1762155977785,0.51966845,3712.0,3711.8,10.388]
[1762155977985,0.51966845,3711.9,3711.8,10.388]
[1762155978179,0.51966845,3711.9,3711.8,10.1189]
[1762155978486,0.51966845,3711.9,3711.8,11.5245]
[1762155978784,0.2694,3712.7,3711.8,11.5245]
[1762155978987,0.2694,3712.5,3712.0,3.2078]
[1762155979285,0.2694,3712.3,3712.2,1.4056]
[1762155979877,0.54102443,3712.3,3712.2,1.4056]
[1762155981474,0.2694,3712.1,3711.6,3.2078]
[1762155981687,0.2694,3711.9,3711.6,3.2078]
[1762155981880,1.56,3711.7,3711.1,3.2078]
[1762155982082,0.2694,3711.5,3711.1,3.2078]
[1762155982279,1.03258575,3711.4,3711.1,7.9008]
[1762155982486,0.76086688,3711.3,3711.2,1.4056]
[1762155984889,0.76094542,3711.3,3711.2,1.4056]
[1762155985092,0.76094542,3711.3,3711.2,1.1365]
[1762155986685,1.04560929,3711.3,3711.2,1.1365]
[1762155988487,1.04560929,3711.3,3711.2,11.4255]
[1762155990295,1.04560929,3711.3,3711.2,14.6333]
[1762155990594,1.04560929,3711.3,3711.2,14.6233]
[1762155991486,9.29e-06,3711.3,3711.2,14.6233]
[1762155991683,0.8185,3712.2,3711.2,14.6233]
[1762155991994,1.3032,3712.0,3711.3,3.2078]
[1762155992193,1.3032,3711.4,3711.1,3.049]
[1762155993391,1.3032,3711.4,3711.3,3.2078]
[1762155995395,1.3032,3711.4,3711.3,2.9387]
[1762155995893,0.7877,3711.5,3711.4,1.3299]
[1762155996394,0.7877,3711.5,3711.3,2.9387]
[1762155996589,1.3032,3711.4,3711.3,2.9387]
[1762155997694,0.7877,3711.5,3711.3,2.9387]
[1762155998498,0.7877,3711.5,3710.9,3.2078]
[1762155998688,0.7877,3711.5,3710.9,8.6088]
[1762155998889,0.7877,3711.5,3711.3,3.2078]
[1762155999294,0.2694,3711.9,3711.4,1.3299]
[1762156000185,1.70989258,3711.9,3711.4,1.3299]
[1762156003694,1.09574382,3711.8,3711.4,1.3299]
[1762156003889,1.09574382,3711.7,3711.4,1.3299]
[1762156004088,1.09574382,3711.6,3711.4,1.3299]
[1762156004300,1.09574382,3711.5,3711.4,1.3299]
[1762156014502,1.5614,3712.4,3711.3,3.2078]
[1762156014705,1.5614,3712.4,3712.1,3.2078]
[1762156015901,0.2694,3712.4,3712.3,0.2004]
[1762156018201,0.2694,3712.4,3712.1,3.2078]
[1762156018397,0.715,3711.5,3711.3,3.2078]
[1762156019409,0.2694,3711.9,3711.3,3.2078]
[1762156020303,0.715,3711.5,3711.3,3.2078]
[1762156021912,0.715,3711.5,3711.4,10.079]
[1762156022315,0.715,3711.5,3711.3,3.2078]
[1762156022815,1.292,3711.4,3711.3,3.2078]
[1762156026308,2.34057694,3711.4,3711.3,3.2078]
[1762156027615,1.04857694,3711.4,3711.3,3.2078]
[1762156030816,2.34057694,3711.4,3711.3,3.2078]
[1762156034422,1.04857694,3711.4,3711.3,3.2078]
[1762156035520,1.04857694,3711.4,3711.3,13.2078]
[1762156037818,0.715,3712.0,3711.5,0.48506]
[1762156038023,0.715,3712.0,3711.9,3.2078]
[1762156038225,0.715,3712.0,3711.9,13.1958]
[1762156038815,0.7877,3712.5,3711.9,13.1958]
[1762156039127,0.7877,3712.5,3712.3,3.2078]
[1762156039724,0.7064,3712.0,3711.9,3.2078]
[1762156039926,0.7064,3712.0,3711.9,13.1868]
[1762156040623,0.7064,3712.0,3711.9,3.2078]
[1762156040624,1.8573,3712.0,3711.9,3.2078]
[1762156041428,2.1267,3712.0,3711.9,3.2078]
[1762156042028,0.9758,3712.0,3711.9,3.2078]
[1762156043232,2.1267,3712.0,3711.9,2.9387]
[1762156045234,0.9758,3712.0,3711.9,2.9387]
[1762156046336,0.7064,3712.0,3711.9,2.9387]
[1762156047237,0.9758,3712.0,3711.9,2.9387]
[1762156047633,0.7064,3712.0,3711.9,2.9387]
[1762156049940,1.73728499,3712.0,3711.9,2.9387]
[1762156052240,2.88818499,3712.0,3711.9,2.9387]
[1762156052536,2.88818499,3712.0,3711.9,12.8707]
[1762156052742,2.88818499,3712.0,3711.4,3.2078]
[1762156052743,1.7061,3711.5,3711.4,3.2078]
[1762156052935,2.73698499,3711.5,3711.4,3.2078]
[1762156060542,1.0668,3711.1,3711.0,3.2078]
[1762156060744,2.09768499,3711.1,3711.0,13.1008]
[1762156061247,1.03088499,3711.1,3711.0,13.1008]
[1762156062245,2.09768499,3711.1,3711.0,3.2078]
[1762156062450,1.37323519,3711.1,3711.0,13.0908]
[1762156062846,2.09939446,3711.1,3711.0,13.0908]
[1762156063347,1.03259446,3711.1,3711.0,13.0908]
[1762156064346,2.12689446,3711.1,3711.0,13.0778]
[1762156068046,1.03259446,3711.1,3711.0,13.0778]
[1762156069149,2.12689446,3711.1,3711.0,13.0778]
[1762156070255,1.03259446,3711.1,3711.0,13.0778]
[1762156074164,1.03259446,3711.1,3711.0,3.2078]
[1762156074354,2.12689446,3711.1,3711.0,10.2538]
[1762156074554,1.03259446,3711.1,3711.0,10.2538]
[1762156076449,1.03259446,3711.1,3711.0,13.0228]
[1762156078256,1.03259446,3711.1,3711.0,13.0178]
[1762156078661,1.03152717,3711.1,3711.0,13.0178]
[1762156080961,0.6393,3711.5,3711.0,13.0178]
[1762156080962,0.6393,3711.5,3711.1,0.48512]
[1762156081166,0.6393,3711.5,3711.4,3.2078]
[1762156081362,0.6393,3711.5,3711.4,13.0178]
[1762156081563,1.3660588,3711.5,3711.4,13.0178]
[1762156082866,0.7267588,3711.5,3711.4,14.45629523]
[1762156083167,0.7064,3712.0,3711.4,14.94136523]
[1762156083367,0.7064,3712.0,3711.8,3.2078]
[1762156083568,0.7064,3712.0,3711.9,9.809]
[1762156087068,1.8007,3712.0,3711.9,9.809]
[1762156087468,1.0943,3711.9,3711.8,3.2078]
[1762156087668,1.0943,3711.9,3711.8,13.0168]
[1762156089273,1.0943,3711.9,3711.8,13.0158]
[1762156090776,0.7064,3712.0,3711.8,3.2078]
[1762156091074,0.7064,3712.0,3711.9,6.201]
[1762156092974,1.01619825,3712.0,3711.9,6.201]
[1762156094176,1.01619825,3712.0,3711.9,9.807]
[1762156095074,1.73095647,3712.0,3711.9,9.807]
[1762156098975,2.82525647,3712.0,3711.9,9.807]
[1762156099168,0.9979,3711.9,3711.8,3.2078]
[1762156099370,2.02245647,3711.9,3711.8,13.0128]
[1762156099674,1.02455647,3711.9,3711.8,13.0128]
[1762156103578,2.02245647,3711.9,3711.8,13.0118]
[1762156104274,0.7877,3712.5,3712.3,0.48495]
[1762156104475,0.8185,3712.8,3712.6,0.48491]
[1762156104777,0.6153,3713.0,3712.7,9.804]
[1762156104977,0.6153,3713.0,3712.9,4.64629523]
[1762156107484,0.6153,3714.0,3713.7,0.48476]
[1762156107686,0.6153,3714.0,3713.9,3.2078]
[1762156107984,0.6153,3714.0,3713.9,13.0098]
[1762156108583,0.61721994,3714.0,3713.9,13.01226958]
[1762156109084,0.61721994,3714.0,3713.9,14.45076481]
[1762156109287,0.6063,3713.0,3712.6,3.2078]
[1762156109580,0.6063,3713.0,3712.9,0.9481]
[1762156109781,0.6063,3713.0,3712.9,5.9651]
[1762156109970,0.6063,3713.5,3712.9,5.9651]
[1762156110174,3.8141,3713.5,3712.9,5.9651]
[1762156110376,3.8141,3713.5,3712.9,7.13873618]
[1762156110674,0.6063,3713.5,3712.9,7.13873618]
[1762156110882,3.2078,3713.9,3713.4,2.11882214]
[1762156111074,3.2078,3713.9,3713.5,9.8]
[1762156111274,0.9526,3713.6,3713.5,9.8]
[1762156112181,0.6063,3713.5,3713.3,9.799]
[1762156113271,0.6063,3713.5,3712.9,1.17363618]
[1762156113272,0.6063,3713.0,3712.9,9.80091404]
[1762156113478,0.6063,3713.0,3712.9,10.74901404]
[1762156116588,3.8141,3713.5,3712.9,11.91973618]
[1762156116782,0.30525042,3713.4,3713.3,0.9481]
[1762156117981,0.6063,3713.5,3713.4,0.9481]
[1762156118186,0.91156837,3713.5,3713.4,0.9481]
[1762156118384,1.5589,3713.0,3712.9,0.00291404]
[1762156118687,1.86416837,3713.0,3712.9,0.00291404]
[1762156118880,3.03489051,3713.0,3712.1,3.2078]
[1762156119080,0.6063,3712.5,3712.4,2.11882214]
[1762156119275,0.91156837,3712.5,3712.4,2.11882214]
[1762156120283,0.91156837,3712.5,3712.4,2.12225582]
[1762156120484,0.6063,3712.5,3712.4,2.12225582]
[1762156124790,0.6063,3713.0,3712.4,2.12225582]
[1762156125089,0.9933028,3712.9,3712.4,2.12225582]
[1762156125289,0.29780489,3712.8,3712.7,0.9362]
[1762156125680,0.29780489,3712.8,3712.7,2.10692214]
[1762156125886,0.6063,3713.5,3712.7,0.9362]
[1762156126080,0.99348564,3713.4,3712.9,1.17072214]
[1762156126288,0.99348564,3713.3,3712.9,1.17072214]
[1762156126484,0.6063,3713.5,3712.9,1.17072214]
[1762156126485,0.99348564,3713.2,3713.1,0.9362]
[1762156126685,0.29786006,3713.2,3713.1,0.9362]
[1762156128784,0.5819,3713.0,3712.9,1.17072214]
[1762156128988,0.5819,3713.0,3712.9,2.10692214]
[1762156129190,1.89057897,3713.0,3712.5,13.0018]
[1762156129497,0.29787897,3712.9,3712.5,13.0018]
[1762156130399,0.29787897,3712.9,3712.8,0.9362]
[1762156135090,0.29787897,3713.4,3712.8,0.9362]
[1762156135295,0.99547704,3713.3,3712.8,2.10692214]
[1762156135486,0.99547704,3713.2,3712.8,2.10692214]
[1762156135691,0.5819,3713.0,3712.9,0.9362]
[1762156135893,2.58896375,3713.0,3712.9,0.9362]
[1762156136094,2.58896375,3713.0,3712.8,1.17072214]
[1762156136293,2.58896375,3713.0,3712.8,2.10692214]
[1762156136294,0.29866568,3712.9,3712.8,2.10692214]
[1762156138595,1.0108,3711.4,3710.7,6.59402016]
[1762156138793,1.0108,3710.8,3710.0,0.5952]
[1762156138996,0.99521521,3710.7,3710.6,0.9362]
[1762156139296,3.2078,3711.9,3711.1,0.93963368]
[1762156139489,3.2078,3711.9,3711.5,0.5952]
[1762156139490,1.0085762,3711.8,3711.5,0.5952]
[1762156139799,1.0085762,3711.7,3711.5,0.59709016]
[1762156139998,2.0193762,3711.6,3711.5,0.59709016]
[1762156140498,2.0193762,3711.6,3711.5,0.60052384]
[1762156140695,1.0085762,3711.6,3711.5,1.53672384]
[1762156140896,3.2078,3712.4,3711.7,0.9362]
[1762156141092,0.29813432,3712.3,3712.2,0.9362]
[1762156141295,0.29813432,3712.3,3712.2,0.93963368]
[1762156141594,1.0108,3712.2,3712.1,0.00343368]
[1762156141801,2.0192117,3712.2,3711.8,9.788]
[1762156141997,0.29813432,3712.1,3712.0,0.5952]
[1762156142193,1.00820243,3712.1,3712.0,1.5314]
[1762156142402,0.00194225,3712.2,3712.1,0.9362]
[1762156142603,0.00194225,3712.2,3712.1,2.11035582]
[1762156144296,0.00194225,3712.2,3712.1,0.93963368]
[1762156147202,3.2078,3713.3,3713.0,0.5952]
[1762156147407,3.2078,3714.1,3713.2,1.82027025]
[1762156147601,3.2078,3714.1,3714.0,1.5314]
[1762156147905,3.2078,3714.1,3714.0,1.53483368]
[1762156148306,3.21039087,3714.1,3714.0,0.59863368]
[1762156148605,1.0108,3713.8,3713.7,9.788]
[1762156149007,1.0108,3713.8,3713.7,9.79143368]
[1762156149803,3.21039087,3714.1,3713.7,9.79143368]
[1762156150105,1.0108,3714.0,3713.9,0.00343368]
[1762156150301,1.0108,3714.0,3713.7,9.788]
[1762156151806,3.21039087,3714.1,3714.0,1.5262]
[1762156152103,3.21039087,3714.1,3714.0,1.52963368]
[1762156155709,4.15609087,3714.1,3713.7,9.788]
[1762156155913,4.15609087,3714.1,3713.8,0.00343368]
[1762156156404,4.15609087,3714.1,3714.0,0.00343368]
[1762156156604,4.15609087,3714.1,3713.9,0.00343368]
[1762156156805,0.94829087,3714.1,3713.9,0.00343368]
[1762156157105,0.94829087,3714.1,3714.0,0.00343368]
[1762156157408,0.94829087,3714.1,3713.8,0.00343368]
[1762156157604,0.00259087,3714.1,3714.0,1.5262]
[1762156158007,0.00259087,3714.1,3714.0,1.52963368]
[1762156159510,0.29529331,3714.1,3714.0,1.52963368]
[1762156160507,1.24099331,3714.1,3714.0,0.58193368]
[1762156160707,0.29529331,3714.1,3714.0,0.58193368]
[1762156160906,0.00259087,3714.1,3714.0,1.52963368]
[1762156162609,0.94829087,3714.1,3714.0,0.5785]
[1762156162809,0.94829087,3714.1,3714.0,0.00343368]
[1762156163814,1.2408948,3714.1,3714.0,0.00343368]
[1762156164409,1.2408948,3714.1,3714.0,0.58193368]
[1762156164812,1.2408948,3714.1,3714.0,1.52963368]
[1762156165613,1.2408948,3714.1,3714.0,0.58193368]
[1762156167613,0.2951948,3714.1,3714.0,1.52963368]
[1762156169512,1.01199831,3714.1,3714.0,1.52963368]
[1762156170818,0.00259087,3714.1,3714.0,1.52963368]
[1762156173218,0.29610464,3714.1,3714.0,1.52963368]
[1762156173616,0.00259087,3714.1,3714.0,1.52963368]
[1762156174318,0.29620636,3714.1,3714.0,1.52963368]
[1762156174717,0.00259087,3714.1,3714.0,1.52963368]
[1762156175518,0.29632226,3714.1,3714.0,1.52963368]
[1762156175922,0.3011,3715.5,3714.5,0.5177]
[1762156175923,0.8998,3714.6,3714.5,0.5177]
[1762156176221,0.71826609,3714.6,3714.3,9.776]